fUSD/lending_fUSD_20240814
["ID","MTS","AMOUNT","RATE_DAILY","PERIOD"]
[334871646,1723620674384,-503.92,0.00015068,2]
[334871647,1723620674394,-511.42,0.00015068,2]
[334871648,1723620674403,-890.99,0.00015068,2]
[334871649,1723620674413,-641.13,0.00015068,2]
[334871650,1723620674425,-500.0,0.00015068,2]
[334871651,1723620674434,-500.0,0.00015068,2]
[334871652,1723620674444,-727.93,0.00015068,2]
[334871653,1723620674453,-662.34,0.00015068,2]
[334871654,1723620674463,-500.0,0.00015068,2]
[334871655,1723620674473,-500.0,0.00015068,2]
[334871656,1723620674482,-500.0,0.00015068,2]
[334871657,1723620674493,-218.46059191,0.00015068,2]
[334871658,1723620674502,-500.0,0.00015068,2]
[334871659,1723620674512,-694.43,0.00015068,2]
[334871660,1723620674521,-570.68,0.00015068,2]
[334871661,1723620674531,-500.0,0.00015068,2]
[334871662,1723620674540,-500.0,0.00015068,2]
[334871663,1723620674550,-500.0,0.00015068,2]
[334871664,1723620674560,-396.48690919,0.00015068,2]
[334871665,1723620674618,-103.51309081,0.00015068,2]
[334871666,1723620674627,-500.0,0.00015068,2]
[334871667,1723620674637,-1238.47,0.00015068,2]
[334871668,1723620674646,-500.0,0.00015068,2]
[334871669,1723620674656,-500.0,0.00015068,2]
[334871670,1723620674665,-500.0,0.00015068,2]
[334871671,1723620674674,-579.57,0.00015068,2]
[334871672,1723620674684,-500.0,0.00015068,2]
[334871673,1723620674693,-500.0,0.00015068,2]
[334871674,1723620674703,-500.0,0.00015068,2]
[334871675,1723620674713,-500.0,0.00015068,2]
[334871676,1723620674723,-500.0,0.00015068,2]
[334871677,1723620674733,-500.0,0.00015068,2]
[334871678,1723620674743,-1335.33,0.00015068,2]
[334871679,1723620674753,-829.86,0.00015068,2]
[334871680,1723620674762,-151.0,0.00015068,2]
[334871681,1723620674772,-190.541969,0.00015068,2]
[334871682,1723620674782,-500.0,0.00015068,2]
[334871683,1723620674791,-500.0,0.00015068,2]
[334871684,1723620674801,-594.0,0.00015068,2]
[334871685,1723620674810,-190.541969,0.00015068,2]
[334871686,1723620674820,-544.43,0.00015068,2]
[334871687,1723620674829,-500.0,0.00015068,2]
[334871688,1723620674839,-500.0,0.00015068,2]
[334871689,1723620674848,-660.36,0.00015068,2]
[334871690,1723620674857,-500.0,0.00015068,2]
[334871691,1723620674867,-500.0,0.00015068,2]
[334871692,1723620674876,-500.0,0.00015068,2]
[334871693,1723620674887,-500.0,0.00015068,2]
[334871694,1723620674896,-500.0,0.00015068,2]
[334871695,1723620674906,-1025.59,0.00015068,2]
[334871696,1723620674916,-500.0,0.00015068,2]
[334871697,1723620674927,-500.0,0.00015068,2]
[334871698,1723620674936,-500.0,0.00015068,2]
[334871699,1723620674946,-500.0,0.00015068,2]
[334871700,1723620674956,-500.0,0.00015068,2]
[334871701,1723620674966,-975.8,0.00015068,2]
[334871702,1723620674976,-500.0,0.00015068,2]
[334871703,1723620674985,-500.0,0.00015068,2]
[334871704,1723620674994,-516.14,0.00015068,2]
[334871705,1723620675004,-500.0,0.00015068,2]
[334871706,1723620675013,-500.0,0.00015068,2]
[334871707,1723620675023,-151.0,0.00015068,2]
[334871708,1723620675033,-500.0,0.00015068,2]
[334871709,1723620675043,-500.0,0.00015068,2]
[334871710,1723620675052,-537.52,0.00015068,2]
[334871711,1723620675061,-500.0,0.00015068,2]
[334871712,1723620675071,-500.0,0.00015068,2]
[334871713,1723620675080,-500.0,0.00015068,2]
[334871714,1723620675089,-500.0,0.00015068,2]
[334871715,1723620675099,-500.0,0.00015068,2]
[334871716,1723620675109,-500.0,0.00015068,2]
[334871717,1723620675118,-500.0,0.00015068,2]
[334871718,1723620675128,-500.0,0.00015068,2]
[334871719,1723620675138,-500.0,0.00015068,2]
[334871720,1723620675148,-500.0,0.00015068,2]
[334871721,1723620675157,-500.0,0.00015068,2]
[334871722,1723620675167,-617.54,0.00015068,2]
[334871723,1723620675176,-1108.96,0.00015068,2]
[334871724,1723620675186,-643.5,0.00015068,2]
[334871725,1723620675195,-500.0,0.00015068,2]
[334871726,1723620675204,-435.15,0.00015068,2]
[334871727,1723620675213,-71.09597183,0.00015068,2]
[334871728,1723620675326,-428.90402817,0.00015068,2]
[334871729,1723620675335,-721.48,0.00015068,2]
[334871730,1723620675344,-500.0,0.00015068,2]
[334871731,1723620675354,-500.0,0.00015068,2]
[334871732,1723620675364,-500.0,0.00015068,2]
[334871733,1723620675374,-500.0,0.00015068,2]
[334871734,1723620675383,-500.0,0.00015068,2]
[334871735,1723620675392,-500.0,0.00015068,2]
[334871736,1723620675401,-500.0,0.00015068,2]
[334871737,1723620675411,-951.16,0.00015068,2]
[334871738,1723620675423,-500.0,0.00015068,2]
[334871739,1723620675434,-454.6842653,0.00015068,2]
[334871740,1723620675444,-500.0,0.00015068,2]
[334871741,1723620675453,-500.0,0.00015068,2]
[334871742,1723620675463,-323.01859471,0.00015068,2]
[334871743,1723620675472,-500.0,0.00015068,2]
[334871744,1723620675481,-500.0,0.00015068,2]
[334871745,1723620675492,-500.0,0.00015068,2]
[334871746,1723620675502,-500.0,0.00015068,2]
[334871747,1723620675512,-500.0,0.00015068,2]
[334871748,1723620675522,-500.0,0.00015068,2]
[334871749,1723620675532,-500.0,0.00015068,2]
[334871750,1723620675543,-500.0,0.00015068,2]
[334871751,1723620675552,-517.4,0.00015068,2]
[334871752,1723620675562,-500.0,0.00015068,2]
[334871753,1723620675571,-500.0,0.00015068,2]
[334871754,1723620675580,-333.27726381,0.00015068,2]
[334871755,1723620675590,-500.0,0.00015068,2]
[334871756,1723620675599,-1099.42,0.00015068,2]
[334871757,1723620675610,-500.0,0.00015068,2]
[334871758,1723620675619,-500.0,0.00015068,2]
[334871759,1723620675630,-720.96,0.00015068,2]
[334871760,1723620675640,-545.17,0.00015068,2]
[334871761,1723620675649,-381.52,0.00015068,2]
[334871762,1723620675659,-500.0,0.00015068,2]
[334871763,1723620675668,-500.0,0.00015068,2]
[334871764,1723620675678,-502.3,0.00015068,2]
[334871765,1723620675687,-500.0,0.00015068,2]
[334871766,1723620675697,-500.0,0.00015068,2]
[334871767,1723620675707,-500.0,0.00015068,2]
[334871768,1723620675718,-151.0,0.00015068,2]
[334871769,1723620675728,-500.0,0.00015068,2]
[334871770,1723620675738,-500.0,0.00015068,2]
[334871771,1723620675748,-500.0,0.00015068,2]
[334871772,1723620675757,-500.0,0.00015068,2]
[334871773,1723620675767,-500.0,0.00015068,2]
[334871774,1723620675777,-169.736676,0.00015068,2]
[334871775,1723620675786,-500.0,0.00015068,2]
[334871776,1723620675795,-500.0,0.00015068,2]
[334871777,1723620675806,-500.0,0.00015068,2]
[334871778,1723620675818,-500.0,0.00015068,2]
[334871779,1723620675828,-169.736676,0.00015068,2]
[334871780,1723620675838,-500.0,0.00015068,2]
[334871781,1723620675848,-500.0,0.00015068,2]
[334871782,1723620675858,-500.0,0.00015068,2]
[334871783,1723620675869,-500.0,0.00015068,2]
[334871784,1723620675878,-500.0,0.00015068,2]
[334871785,1723620675888,-500.0,0.00015068,2]
[334871786,1723620675897,-500.0,0.00015068,2]
[334871787,1723620675906,-500.0,0.00015068,2]
[334871788,1723620675917,-500.0,0.00015068,2]
[334871789,1723620675926,-862.74,0.00015068,2]
[334871790,1723620675936,-500.0,0.00015068,2]
[334871791,1723620675947,-627.86309191,0.00015068,2]
[334871792,1723620675958,-552.06,0.00015068,2]
[334871793,1723620675968,-500.0,0.00015068,2]
[334871794,1723620675977,-500.0,0.00015068,2]
[334871795,1723620675988,-500.0,0.00015068,2]
[334871796,1723620675998,-648.18,0.00015068,2]
[334871797,1723620676008,-860.96,0.00015068,2]
[334871798,1723620676019,-500.0,0.00015068,2]
[334871799,1723620676029,-500.0,0.00015068,2]
[334871800,1723620676039,-1377.93,0.00015068,2]
[334871801,1723620676048,-577.13,0.00015068,2]
[334871802,1723620676059,-1553.5,0.00015068,2]
[334871803,1723620676069,-500.0,0.00015068,2]
[334871804,1723620676078,-500.0,0.00015068,2]
[334871805,1723620676087,-875.79,0.00015068,2]
[334871806,1723620676096,-500.0,0.00015068,2]
[334871807,1723620676105,-500.0,0.00015068,2]
[334871808,1723620676115,-500.0,0.00015068,2]
[334871809,1723620676124,-500.0,0.00015068,2]
[334871810,1723620676134,-500.0,0.00015068,2]
[334871811,1723620676145,-517.31,0.00015068,2]
[334871812,1723620676156,-500.0,0.00015068,2]
[334871813,1723620676166,-802.23,0.00015068,2]
[334871814,1723620676175,-500.0,0.00015068,2]
[334871815,1723620676184,-577.94,0.00015068,2]
[334871816,1723620676194,-500.0,0.00015068,2]
[334871817,1723620676203,-500.0,0.00015068,2]
[334871818,1723620676213,-557.73,0.00015068,2]
[334871819,1723620676223,-500.0,0.00015068,2]
[334871820,1723620676235,-500.0,0.00015068,2]
[334871821,1723620676245,-575.4,0.00015068,2]
[334871822,1723620676254,-603.71,0.00015068,2]
[334871823,1723620676264,-500.0,0.00015068,2]
[334871824,1723620676274,-583.2,0.00015068,2]
[334871825,1723620676283,-500.0,0.00015068,2]
[334871826,1723620676292,-659.68,0.00015068,2]
[334871827,1723620676302,-500.0,0.00015068,2]
[334871828,1723620676312,-500.0,0.00015068,2]
[334871829,1723620676321,-501.07,0.00015068,2]
[334871830,1723620676331,-500.0,0.00015068,2]
[334871831,1723620676340,-500.0,0.00015068,2]
[334871832,1723620676350,-509.16,0.00015068,2]
[334871833,1723620676361,-500.0,0.00015068,2]
[334871834,1723620676371,-500.0,0.00015068,2]
[334871835,1723620676381,-642.16,0.00015068,2]
[334871836,1723620676390,-542.76,0.00015068,2]
[334871837,1723620676400,-500.0,0.00015068,2]
[334871838,1723620676409,-500.0,0.00015068,2]
[334871839,1723620676422,-500.0,0.00015068,2]
[334871840,1723620676431,-500.0,0.00015068,2]
[334871841,1723620676440,-714.09,0.00015068,2]
[334871842,1723620676450,-500.0,0.00015068,2]
[334871843,1723620676459,-500.0,0.00015068,2]
[334871844,1723620676469,-1105.55,0.00015068,2]
[334871845,1723620676478,-646.97,0.00015068,2]
[334871846,1723620676488,-1302.61,0.00015068,2]
[334871847,1723620676498,-500.0,0.00015068,2]
[334871848,1723620676508,-4230.22,0.00015068,2]
[334871849,1723620676517,-500.0,0.00015068,2]
[334871850,1723620676527,-500.0,0.00015068,2]
[334871851,1723620676537,-1927.63,0.00015068,2]
[334871852,1723620676548,-538.83,0.00015068,2]
[334871853,1723620676559,-500.0,0.00015068,2]
[334871854,1723620676568,-151.0,0.00015068,2]
[334871855,1723620676577,-3771.24,0.00015068,2]
[334871856,1723620676586,-500.0,0.00015068,2]
[334871857,1723620676596,-500.0,0.00015068,2]
[334871858,1723620676605,-500.0,0.00015068,2]
[334871859,1723620676615,-2583.53,0.00015068,2]
[334871860,1723620676626,-589.05,0.00015068,2]
[334871861,1723620676635,-500.0,0.00015068,2]
[334871862,1723620676644,-638.08,0.00015068,2]
[334871863,1723620676655,-705.12,0.00015068,2]
[334871864,1723620676664,-500.0,0.00015068,2]
[334871865,1723620676674,-1567.35,0.00015068,2]
[334871866,1723620676684,-2757.25,0.00015068,2]
[334871867,1723620676695,-642.62,0.00015068,2]
[334871868,1723620676705,-5777.23,0.00015068,2]
[334871869,1723620676715,-12612.61,0.00015068,2]
[334871870,1723620676724,-500.0,0.00015068,2]
[334871871,1723620676734,-500.0,0.00015068,2]
[334871872,1723620676745,-500.0,0.00015068,2]
[334871873,1723620676754,-724.19,0.00015068,2]
[334871874,1723620676764,-675.15,0.00015068,2]
[334871875,1723620676774,-2454.92,0.00015068,2]
[334871876,1723620676784,-699.56,0.00015068,2]
[334871877,1723620676793,-3995.99,0.00015068,2]
[334871878,1723620676803,-1562.13,0.00015068,2]
[334871879,1723620676813,-500.0,0.00015068,2]
[334871880,1723620676822,-500.0,0.00015068,2]
[334871881,1723620676832,-1021.09,0.00015068,2]
[334871882,1723620676841,-500.0,0.00015068,2]
[334871883,1723620676852,-708.56,0.00015068,2]
[334871884,1723620676861,-716.38,0.00015068,2]
[334871885,1723620676871,-1012.52,0.00015068,2]
[334871886,1723620676880,-500.0,0.00015068,2]
[334871887,1723620676890,-151.0,0.00015068,2]
[334871888,1723620676900,-1574.06,0.00015068,2]
[334871889,1723620676909,-500.0,0.00015068,2]
[334871890,1723620676919,-500.0,0.00015068,2]
[334871891,1723620677080,-650.58,0.00015068,2]
[334871892,1723620677091,-590.62,0.00015068,2]
[334871893,1723620677100,-4431.9,0.00015068,2]
[334871894,1723620677111,-777.75,0.00015068,2]
[334871895,1723620677120,-500.0,0.00015068,2]
[334871896,1723620677129,-500.0,0.00015068,2]
[334871897,1723620677140,-500.0,0.00015068,2]
[334871898,1723620677150,-500.0,0.00015068,2]
[334871899,1723620677159,-626.17,0.00015068,2]
[334871900,1723620677169,-1296.7,0.00015068,2]
[334871901,1723620677179,-500.0,0.00015068,2]
[334871902,1723620677188,-3542.6,0.00015068,2]
[334871903,1723620677199,-20771.82171897,0.00015068,2]
[334871904,1723620677470,-1936.85323252,0.00015068,2]
[334871905,1723620677482,-4097.22221968,0.00015068,2]
[334871906,1723620677494,-935.21484251,0.00015068,2]
[334871907,1723620677506,-329.7004954,0.00015068,2]
[334871908,1723620678580,-4416.60999958,0.00015068,2]
[334871909,1723620678592,-416.359999,0.00015068,2]
[334871910,1723620678628,-499.99,0.00013889,2]
[334871911,1723620678638,-1557.75202698,0.00015068,2]
[334871912,1723620678679,-607.00378439,0.00015068,2]
[334871913,1723620678690,-200.48168097,0.00015068,2]
[334871914,1723620678700,-561.92,0.00015068,2]
[334871915,1723620678709,-27.58831903,0.00015068,2]
[334871916,1723620679007,-2414.68677028,0.00013478,2]
[334871917,1723620679019,-15002.08710001,0.00013478,2]
[334871918,1723620679030,-858.99079704,0.00013478,2]
[334871919,1723620679041,-508.65944704,0.00013478,2]
[334871920,1723620679052,-607.97134023,0.00013478,2]
[334871921,1723620679063,-924.63651911,0.00013478,2]
[334871922,1723620679074,-1443.96802629,0.00013478,2]
[334871923,1723620679083,-438.1052137,0.00015068,2]
[334871924,1723620679094,-278.25646727,0.00015068,2]
[334871925,1723620679103,-651.74353273,0.00015068,2]
[334871926,1723620679116,-459.58986104,0.00015068,2]
[334871927,1723620679128,-912.85999773,0.00015068,2]
[334871928,1723620679139,-1641.7566085,0.00015068,2]
[334871929,1723620679148,-630.7433915,0.00015068,2]
[334871930,1723620679170,-132.9866085,0.00015068,2]
[334871931,1723620679179,-500.0,0.00015068,2]
[334871932,1723620679188,-1584.45,0.00015068,2]
[334871933,1723620679198,-500.0,0.00015068,2]
[334871934,1723620679207,-849.11,0.00015068,2]
[334871935,1723620679216,-500.0,0.00015068,2]
[334871936,1723620679378,-500.0,0.00015068,2]
[334871937,1723620679389,-431.4533915,0.00015068,2]
[334871938,1723620679401,-68.5466085,0.00015068,2]
[334871939,1723620679411,-823.99663066,0.00015068,2]
[334871940,1723620679425,-542.79318473,0.00015068,2]
[334871941,1723620679437,-1004.84499967,0.00015068,2]
[334871942,1723620679458,-1443.28518494,0.00015068,2]
[334871943,1723620679469,-977.72,0.00015068,2]
[334871944,1723620679479,-1423.61,0.00015068,2]
[334871945,1723620679489,-1036.45,0.00015068,2]
[334871946,1723620679500,-151.0,0.00015068,2]
[334871947,1723620679510,-875.75,0.00015068,2]
[334871948,1723620679520,-1638.4,0.00015068,2]
[334871949,1723620679529,-3123.04,0.00015068,2]
[334871950,1723620679539,-500.0,0.00015068,2]
[334871951,1723620679549,-4390.31,0.00015068,2]
[334871952,1723620679559,-500.0,0.00015068,2]
[334871953,1723620679568,-500.0,0.00015068,2]
[334871954,1723620679579,-345.908315,0.00015068,2]
[334871955,1723620679589,-500.0,0.00015068,2]
[334871956,1723620679599,-1041.59,0.00015068,2]
[334871957,1723620679609,-500.0,0.00015068,2]
[334871958,1723620679621,-345.908315,0.00015068,2]
[334871959,1723620679632,-2253.8,0.00015068,2]
[334871960,1723620679647,-2098.0,0.00015068,2]
[334871961,1723620679657,-500.0,0.00015068,2]
[334871962,1723620679667,-500.0,0.00015068,2]
[334871963,1723620679677,-672.57,0.00015068,2]
[334871964,1723620679689,-1025.9,0.00015068,2]
[334871965,1723620679700,-500.0,0.00015068,2]
[334871966,1723620679709,-500.0,0.00015068,2]
[334871967,1723620679720,-500.0,0.00015068,2]
[334871968,1723620679730,-1015.73,0.00015068,2]
[334871969,1723620679741,-500.0,0.00015068,2]
[334871970,1723620679752,-1149.64,0.00015068,2]
[334871971,1723620679763,-500.0,0.00015068,2]
[334871972,1723620679774,-500.0,0.00015068,2]
[334871973,1723620679784,-1020.09,0.00015068,2]
[334871974,1723620679794,-500.0,0.00015068,2]
[334871975,1723620679804,-500.0,0.00015068,2]
[334871976,1723620679814,-637.53,0.00015068,2]
[334871977,1723620679824,-500.0,0.00015068,2]
[334871978,1723620679834,-500.0,0.00015068,2]
[334871979,1723620679844,-500.0,0.00015068,2]
[334871980,1723620679854,-500.0,0.00015068,2]
[334871981,1723620679868,-598.95,0.00015068,2]
[334871982,1723620679879,-425.50715676,0.00015068,2]
[334871983,1723620679890,-3408.8,0.00015068,2]
[334871984,1723620679901,-500.0,0.00015068,2]
[334871985,1723620679911,-500.0,0.00015068,2]
[334871986,1723620679922,-1220.39,0.00015068,2]
[334871987,1723620679933,-221.72975454,0.00015068,2]
[334871988,1723620679944,-500.0,0.00015068,2]
[334871989,1723620679954,-828.63,0.00015068,2]
[334871990,1723620679965,-1276.97,0.00015068,2]
[334871991,1723620679975,-5042.49,0.00015068,2]
[334871992,1723620679985,-500.0,0.00015068,2]
[334871993,1723620679995,-500.0,0.00015068,2]
[334871994,1723620680005,-648.84,0.00015068,2]
[334871995,1723620680015,-849.43,0.00015068,2]
[334871996,1723620680024,-1088.84,0.00015068,2]
[334871997,1723620680035,-697.5,0.00015068,2]
[334871998,1723620680044,-1178.52,0.00015068,2]
[334871999,1723620680054,-500.0,0.00015068,2]
[334872000,1723620680063,-690.09,0.00015068,2]
[334872001,1723620680073,-618.66,0.00015068,2]
[334872002,1723620680083,-866.59,0.00015068,2]
[334872003,1723620680093,-500.0,0.00015068,2]
[334872004,1723620680102,-1000.0,0.00015068,2]
[334872005,1723620680114,-370.14184071,0.00015068,2]
[334872006,1723620680123,-2098.19,0.00015068,2]
[334872007,1723620680132,-151.0,0.00015068,2]
[334872008,1723620680142,-500.0,0.00015068,2]
[334872009,1723620680153,-1862.93,0.00015068,2]
[334872010,1723620680163,-1000.0,0.00015068,2]
[334872011,1723620680172,-536.05,0.00015068,2]
[334872012,1723620680181,-1026.42,0.00015068,2]
[334872013,1723620680190,-770.83,0.00015068,2]
[334872014,1723620680200,-500.0,0.00015068,2]
[334872015,1723620680210,-500.0,0.00015068,2]
[334872016,1723620680219,-2022.99,0.00015068,2]
[334872017,1723620680229,-926.67,0.00015068,2]
[334872018,1723620680238,-1308.09,0.00015068,2]
[334872019,1723620680247,-500.0,0.00015068,2]
[334872020,1723620680257,-707.31,0.00015068,2]
[334872021,1723620680266,-500.0,0.00015068,2]
[334872022,1723620680275,-1018.12,0.00015068,2]
[334872023,1723620680285,-1029.55,0.00015068,2]
[334872024,1723620680294,-500.0,0.00015068,2]
[334872025,1723620680304,-554.63,0.00015068,2]
[334872026,1723620680315,-500.0,0.00015068,2]
[334872027,1723620680324,-457.77169161,0.00015068,2]
[334872028,1723620680335,-1038.94,0.00015068,2]
[334872029,1723620680344,-853.95,0.00015068,2]
[334872030,1723620680354,-500.0,0.00015068,2]
[334872031,1723620680363,-500.0,0.00015068,2]
[334872032,1723620680374,-500.0,0.00015068,2]
[334872033,1723620680384,-500.0,0.00015068,2]
[334872034,1723620680393,-500.0,0.00015068,2]
[334872035,1723620680403,-500.0,0.00015068,2]
[334872036,1723620680412,-500.0,0.00015068,2]
[334872037,1723620680424,-500.0,0.00015068,2]
[334872038,1723620680434,-1710.08,0.00015068,2]
[334872039,1723620680444,-691.25,0.00015068,2]
[334872040,1723620680454,-500.0,0.00015068,2]
[334872041,1723620680463,-500.0,0.00015068,2]
[334872042,1723620680473,-1036.3,0.00015068,2]
[334872043,1723620680483,-500.0,0.00015068,2]
[334872044,1723620680493,-1094.21,0.00015068,2]
[334872045,1723620680505,-500.0,0.00015068,2]
[334872046,1723620680515,-1184.35,0.00015068,2]
[334872047,1723620680525,-500.0,0.00015068,2]
[334872048,1723620680535,-500.0,0.00015068,2]
[334872049,1723620680544,-500.0,0.00015068,2]
[334872050,1723620680554,-500.0,0.00015068,2]
[334872051,1723620680564,-664.34,0.00015068,2]
[334872052,1723620680574,-556.8,0.00015068,2]
[334872053,1723620680583,-1873.52,0.00015068,2]
[334872054,1723620680592,-500.0,0.00015068,2]
[334872055,1723620680602,-500.0,0.00015068,2]
[334872056,1723620680612,-500.0,0.00015068,2]
[334872057,1723620680622,-1573.93,0.00015068,2]
[334872058,1723620680631,-975.68,0.00015068,2]
[334872059,1723620680640,-3644.0,0.00015068,2]
[334872060,1723620680649,-500.0,0.00015068,2]
[334872061,1723620680659,-500.0,0.00015068,2]
[334872062,1723620680668,-500.0,0.00015068,2]
[334872063,1723620680678,-1757.08,0.00015068,2]
[334872064,1723620680687,-500.0,0.00015068,2]
[334872065,1723620680696,-1512.55,0.00015068,2]
[334872066,1723620680705,-500.0,0.00015068,2]
[334872067,1723620680714,-2217.29,0.00015068,2]
[334872068,1723620680724,-723.59,0.00015068,2]
[334872069,1723620680733,-500.0,0.00015068,2]
[334872070,1723620680743,-741.89,0.00015068,2]
[334872071,1723620680752,-829.58,0.00015068,2]
[334872072,1723620680761,-529.95,0.00015068,2]
[334872073,1723620680770,-500.0,0.00015068,2]
[334872074,1723620680779,-530.92,0.00015068,2]
[334872075,1723620680789,-598.22,0.00015068,2]
[334872076,1723620680799,-686.51,0.00015068,2]
[334872077,1723620680810,-500.0,0.00015068,2]
[334872078,1723620680819,-500.0,0.00015068,2]
[334872079,1723620680829,-770.24,0.00015068,2]
[334872080,1723620680838,-737.04,0.00015068,2]
[334872081,1723620680847,-561.79,0.00015068,2]
[334872082,1723620680857,-500.0,0.00015068,2]
[334872083,1723620680869,-826.62,0.00015068,2]
[334872084,1723620680879,-916.91,0.00015068,2]
[334872085,1723620680889,-1114.22,0.00015068,2]
[334872086,1723620680899,-1356.07,0.00015068,2]
[334872087,1723620680908,-500.0,0.00015068,2]
[334872088,1723620680917,-500.0,0.00015068,2]
[334872089,1723620680926,-1189.45,0.00015068,2]
[334872090,1723620680936,-747.49,0.00015068,2]
[334872091,1723620680945,-500.0,0.00015068,2]
[334872092,1723620680955,-500.0,0.00015068,2]
[334872093,1723620680964,-500.0,0.00015068,2]
[334872094,1723620680974,-3005.06,0.00015068,2]
[334872095,1723620680984,-500.0,0.00015068,2]
[334872096,1723620680994,-500.0,0.00015068,2]
[334872097,1723620681004,-1128.02,0.00015068,2]
[334872098,1723620681013,-500.0,0.00015068,2]
[334872099,1723620681022,-10424.82626031,0.00015103,2]
[334872100,1723620681031,-150.0,0.00015151,2]
[334872101,1723620681041,-150.0,0.00015151,2]
[334872102,1723620681050,-150.0,0.00015151,2]
[334872103,1723620681060,-150.0,0.00015151,2]
[334872104,1723620681069,-150.0,0.00015151,2]
[334872105,1723620681079,-150.0,0.00015151,2]
[334872106,1723620681088,-150.20882,0.00015158,2]
[334872107,1723620681098,-150.0,0.00015244,4]
[334872108,1723620681107,-1069.4,0.00015341,2]
[334872109,1723620681117,-1069.4,0.00015341,2]
[334872110,1723620681127,-1000.0,0.00015342,2]
[334872111,1723620681136,-500.0,0.00015342,2]
[334872112,1723620681146,-500.0,0.00015342,2]
[334872113,1723620681155,-500.0,0.00015342,2]
[334872114,1723620681164,-515.68134949,0.00015342,2]
[334872115,1723620681174,-500.0,0.00015342,2]
[334872116,1723620681183,-500.0,0.00015342,2]
[334872117,1723620681192,-560.85,0.00015342,2]
[334872118,1723620681201,-500.0,0.00015342,2]
[334872119,1723620681211,-500.0,0.00015342,2]
[334872120,1723620681220,-500.0,0.00015342,2]
[334872121,1723620681230,-500.0,0.00015342,2]
[334872122,1723620681239,-500.0,0.00015342,2]
[334872123,1723620681248,-500.0,0.00015342,2]
[334872124,1723620681257,-500.0,0.00015342,2]
[334872125,1723620681268,-510.54,0.00015342,2]
[334872126,1723620681277,-500.0,0.00015342,2]
[334872127,1723620681287,-560.91,0.00015342,2]
[334872128,1723620681296,-510.65,0.00015342,2]
[334872129,1723620681306,-500.0,0.00015342,2]
[334872130,1723620681315,-500.0,0.00015342,2]
[334872131,1723620681325,-1141.96,0.00015342,2]
[334872132,1723620681334,-500.0,0.00015342,2]
[334872133,1723620681344,-500.0,0.00015342,2]
[334872134,1723620681353,-500.0,0.00015342,2]
[334872135,1723620681363,-513.16,0.00015342,2]
[334872136,1723620681378,-500.0,0.00015342,2]
[334872137,1723620681387,-3147.98,0.00015342,2]
[334872138,1723620681397,-500.0,0.00015342,2]
[334872139,1723620681407,-500.0,0.00015342,2]
[334872140,1723620681417,-500.0,0.00015342,2]
[334872141,1723620681429,-500.0,0.00015342,2]
[334872142,1723620681439,-500.0,0.00015342,2]
[334872143,1723620681448,-813.31,0.00015342,2]
[334872144,1723620681458,-650.43,0.00015342,2]
[334872145,1723620681468,-500.0,0.00015342,2]